fUSD/lending_fUSD_20250403
["ID","MTS","AMOUNT","RATE_DAILY","PERIOD"]
[357059714,1743670209233,-19.14717088,0.000149,2]
[357059715,1743670209261,-1962.7747,0.000149,2]
[357059716,1743670209291,-6006.05150832,0.000149,2]
[357059717,1743670209331,-11442.18905097,0.000149,2]
[357059718,1743670228307,-15000.0,0.000149,2]
[357059724,1743670231627,-596.82764071,0.000149,2]
[357059725,1743670231637,-584.5832543,0.00014973,2]
[357059726,1743670231647,-250.01656051,0.00014973,2]
[357059727,1743670231656,-500.41069562,0.00014973,2]
[357059728,1743670231666,-557.1592989,0.00014973,2]
[357059729,1743670231677,-168.26586913,0.0001499,2]
[357059730,1743670231686,-150.0,0.00014999,2]
[357059731,1743670231695,-85276.09804146,0.00015,2]
[357059732,1743670231788,-1288.49999998,0.00015,2]
[357059733,1743670231800,-432.87427369,0.00015,2]
[357059751,1743670237392,-442.20931429,0.00015,2]
[357059752,1743670237543,-4070.42433121,0.00015,2]
[357059794,1743670238120,-48150.84057669,0.00015,2]
[357059809,1743670238560,3348.06,0.00014859,2]
[357059813,1743670240105,-374.02985165,0.00014999,2]
[357059859,1743670245713,-169.17703467,0.000149,2]
[357059860,1743670245723,-37.70387877,0.00014999,2]
[357059861,1743670245734,-7480.51114179,0.00015,2]
[357059862,1743670245746,-14504.0768513,0.00015,2]
[357059863,1743670245758,-364.76808002,0.00015,2]
[357059890,1743670321618,350.0,0.00014949,12]
[357059893,1743670431256,2688.99,0.0003491,30]
[357059894,1743670441527,350.0,0.00014925,12]
[357059895,1743670442552,-167.73673983,0.00014899,2]
[357059897,1743670563421,-150.0,0.00014899,2]
[357059898,1743670621835,-250.0,0.00014899,2]
[357059900,1743670803391,-150.0,0.00014899,2]
[357059905,1743670985128,-150.0,0.00014899,2]
[357059907,1743671163548,-150.0,0.00014899,2]
[357059908,1743671241114,-941.33097791,0.000149,2]
[357059909,1743671244135,-58.66902209,0.000149,2]
[357059910,1743671244156,-1880.449,0.000149,2]
[357059911,1743671244177,-631.6895,0.000149,2]
[357059912,1743671244198,-317.4719,0.000149,2]
[357059913,1743671244414,-1081.5201,0.000149,2]
[357059914,1743671244436,-4251.2533,0.000149,2]
[357059915,1743671244458,-575.5639,0.000149,2]
[357059916,1743671244480,-3286.85266076,0.000149,2]
[357059917,1743671248099,-1277.2255805,0.000149,2]
[357059918,1743671312776,-10209.42945874,0.000149,2]
[357059919,1743671312805,-637.39822474,0.000149,2]
[357059920,1743671312847,-924.35147526,0.000149,2]
[357059921,1743671312875,-246.07706268,0.000149,2]
[357059922,1743671312902,-2877.4178,0.000149,2]
[357059923,1743671312929,-887.3765,0.000149,2]
[357059924,1743671312957,-584.3897,0.000149,2]
[357059925,1743671312984,-2005.95908656,0.000149,2]
[357059926,1743671338356,-6215.44501344,0.000149,2]
[357059927,1743671338387,-4998.8306562,0.000149,2]
[357059928,1743671338432,-762.21731309,0.000149,2]
[357059929,1743671387854,-126.33594021,0.000149,2]
[357059930,1743671387882,-217.25759557,0.000149,2]
[357059931,1743671387912,-186.3931149,0.000149,2]
[357059932,1743671387939,-682.30448835,0.000149,2]
[357059954,1743671432157,-317.69551165,0.000149,2]
[357059956,1743671432166,-4791.28925724,0.000149,2]
[357059958,1743671432176,-250.0,0.00014949,2]
[357059960,1743671432185,-500.0,0.00014973,2]
[357059962,1743671432195,-500.0,0.00014973,2]
[357059964,1743671432204,-4336.74306577,0.0001499,2]
[357059966,1743671432215,-261.36076216,0.0001499,2]
[357059975,1743671432402,-407.66361362,0.0001499,2]
[357059976,1743671432496,-547.10656,0.0001499,2]
[357059977,1743671432507,-631.14,0.0001499,2]
[357059978,1743671432518,-450.0,0.0001499,2]
[357059979,1743671432580,-503.4735659,0.0001499,2]
[357059980,1743671432591,-310.31,0.0001499,2]
[357059984,1743671437597,-1595.74317713,0.0001499,2]
[357059985,1743671437808,-780.28090884,0.0001499,2]
[357059986,1743671437818,-150.0,0.00014999,2]
[357059987,1743671437828,-6983.96575363,0.00015,2]
[357059988,1743671439684,-832.60040616,0.00015,2]
[357059989,1743671439849,-3319.50680006,0.00015,2]
[357060009,1743671445706,-4000.0,0.00015,2]
[357060010,1743671445906,-1051.96977662,0.00015,2]
[357060014,1743671643705,-206.0,0.00014899,2]
[357060018,1743671663409,197.73693942,0.000148,2]
[357060019,1743671883179,-150.0,0.00014899,2]
[357060020,1743671909082,173.056,0.000147,2]
[357060021,1743671941657,807.53131285,0.0001485,2]
[357060029,1743672251316,580.0,0.00034907,120]
[357060037,1743672336981,221.15852275,8e-05,2]
[357060046,1743672423299,-150.0,0.00014899,2]
[357060048,1743672435149,-789.37207496,0.000149,2]
[357060049,1743672435172,-1156.2196,0.000149,2]
[357060050,1743672435194,-1000.0,0.000149,2]
[357060051,1743672435217,-703.3278,0.000149,2]
[357060052,1743672435239,-3506.40690625,0.000149,2]
[357060053,1743672440097,-1453.43629772,0.000149,2]
[357060058,1743672527849,-635.38849603,0.000149,2]
[357060059,1743672527877,-10035.53847169,0.000149,2]
[357060060,1743672527970,-5172.26942831,0.000149,2]
[357060061,1743672527998,-206.2434116,0.000149,2]
[357060062,1743672528026,-495.9232,0.000149,2]
[357060063,1743672528055,-2660.99985882,0.000149,2]
[357060064,1743672552919,-1805.14760476,0.000149,2]
[357060065,1743672552949,-6192.26893228,0.000149,2]
[357060066,1743672552977,-1000.0,0.000149,2]
[357060067,1743672553004,-2057.63768801,0.000149,2]
[357060075,1743672631808,-492.56648881,0.000149,2]
[357060076,1743672631918,-571.06838024,0.000149,2]
[357060077,1743672631928,-207.14039119,0.000149,2]
[357060078,1743672631937,-500.0,0.00014973,2]
[357060079,1743672631947,-286.09376967,0.0001499,2]
[357060080,1743672631960,-206.39382797,0.0001499,2]
[357060081,1743672631971,-74.1127352,0.00014999,2]
[357060082,1743672631983,-314.97000001,0.00014999,2]
[357060083,1743672631995,-479.00088233,0.00014999,2]
[357060084,1743672632005,-201.9344544,0.00015,2]
[357060085,1743672632016,-688.98001588,0.00015,2]
[357060114,1743672637855,-160038.29063679,0.00015,2]
[357060115,1743672637867,-8037.08779313,0.00015,2]
[357060116,1743672637908,-421.3930213,0.00015,2]
[357060117,1743672637921,-1865.50895554,0.00015,2]
[357060141,1743672644024,-4967.77,0.00015,2]
[357060149,1743672919833,2401.9284,0.000148,2]
[357060159,1743673265778,500.0,0.000146,5]
[357060160,1743673267496,1000.0,0.00034907,30]
[357060161,1743673268099,1000.0,0.000147,5]
[357060162,1743673270046,1500.0,0.000148,5]
[357060163,1743673272190,2100.0,0.000149,5]
[357060164,1743673386195,-1000.0,0.000149,2]
[357060165,1743673386221,-1538.1654,0.000149,2]
[357060166,1743673386247,-7461.8346,0.000149,2]
[357060168,1743673646369,200.0,0.000146,5]
[357060169,1743673648104,-1463.90785784,0.000149,2]
[357060170,1743673648484,500.0,0.000147,5]
[357060171,1743673650587,800.0,0.000148,5]
[357060172,1743673652685,1100.0,0.000149,5]
[357060173,1743673653090,-3817.65224216,0.000149,2]
[357060174,1743673653111,-559.0605,0.000149,2]
[357060175,1743673653134,-5581.99774754,0.000149,2]
[357060176,1743673772579,-10569.89287114,0.000149,2]
[357060177,1743673772626,-6855.32558132,0.000149,2]
[357060178,1743673772654,-2105.6454809,0.000149,2]
[357060185,1743673797329,-3850.8703191,0.000149,2]
[357060186,1743673797359,-446.3409,0.000149,2]
[357060187,1743673797396,-500.0,0.000149,2]
[357060188,1743673797427,-6163.29893071,0.000149,2]
[357060189,1743673797463,-409.74346929,0.000149,2]
[357060190,1743673797514,-339.0004,0.000149,2]
[357060191,1743673797565,-5178.58197575,0.000149,2]
[357060193,1743673832025,-980.83426641,0.000149,2]
[357060194,1743673832064,-355.91999993,0.000149,2]
[357060195,1743673832147,-2012.920012,0.000149,2]
[357060233,1743673837849,-263.0,0.000149,2]
[357060234,1743673837861,-4869.37864591,0.000149,2]
[357060235,1743673837871,-1000.0,0.000149,2]
[357060236,1743673837880,-6668.2142,0.000149,2]
[357060237,1743673837890,-164.99472928,0.000149,2]
[357060238,1743673837899,-1000.0,0.000149,2]
[357060239,1743673837909,-6580.57525905,0.000149,2]
[357060240,1743673837918,-178.61665685,0.000149,2]
[357060241,1743673837928,-991.1077,0.000149,2]
[357060242,1743673837938,-2500.0,0.000149,2]
[357060243,1743673837948,-457.7568,0.000149,2]
[357060244,1743673837957,-10838.7461,0.000149,2]
[357060245,1743673837966,-173.056,0.00014999,2]
[357060246,1743673837976,-968.0,0.00015,2]
[357060247,1743673837985,-225238.21884206,0.00015,2]
[357060248,1743673838005,-665.52588323,0.00015,2]
[357060249,1743673838020,-16570.3838844,0.00015,2]
[357060250,1743673838073,-728.92766959,0.00015,2]
[357060252,1743673840489,-1611162.2011486,0.00015,2]
[357060253,1743673840498,-67440.89604664,0.00015,2]
[357060254,1743673840508,-607448.78066881,0.00015,2]
[357060255,1743673840519,-151.0,0.00015,2]
[357060256,1743673840528,-151.0,0.00015,2]
[357060257,1743673840538,-151.0,0.00015,2]
[357060258,1743673840549,-151.0,0.00015,2]
[357060259,1743673840559,-151.0,0.00015,2]
[357060260,1743673840568,-151.0,0.00015,2]
[357060261,1743673840578,-151.0,0.00015,2]
[357060262,1743673840587,-13007.1541287,0.00015438,2]
[357060263,1743673840597,-3825.8568232,0.00015449,2]
[357060264,1743673840607,-250.0,0.00015492,2]
[357060265,1743673840620,-176.4,0.00015577,2]
[357060266,1743673840631,-250.0,0.00015622,2]
[357060267,1743673840641,-350.0,0.0001639,12]
[357060268,1743673840651,-250.0,0.0001639,2]
[357060269,1743673840661,-350.0,0.0001639,12]
[357060270,1743673840670,-188.3,0.00016712,2]
[357060271,1743673840680,-1168.52,0.00017553,2]
[357060272,1743673840691,-6580.57525899,0.00018444,2]
[357060273,1743673840702,-2092.26,0.00018533,2]
[357060274,1743673840711,-1725.93,0.00018533,2]
[357060275,1743673840721,-3259.96,0.00018533,2]
[357060277,1743673840730,-626.99,0.00018533,2]
[357060278,1743673840739,-818.6,0.00018533,2]
[357060279,1743673840748,-8450.88,0.00018533,2]
[357060280,1743673840757,-348.46532646,0.00019,2]
[357060281,1743673840766,-201.93806268,0.00019,2]
[357060282,1743673840776,-5503.78833007,0.00019,2]
[357060283,1743673840786,-151.0,0.00019,2]
[357060284,1743673840795,-151.0,0.00019,2]
[357060285,1743673840805,-238.375229,0.00019,2]
[357060286,1743673840814,-1772.1,0.00019423,2]
[357060287,1743673840823,-3815.51,0.00019426,2]
[357060288,1743673840833,-175.28,0.00019429,2]
[357060289,1743673840842,-8415.86,0.00019437,2]
[357060290,1743673840852,-151.0,0.00019437,2]
[357060291,1743673840861,-23900.0,0.00019447,2]
[357060292,1743673840871,-250.0,0.00019488,2]
[357060293,1743673840884,-512.78,0.00019548,2]
[357060294,1743673840894,-742.98,0.00019557,2]
[357060295,1743673840903,-200.0,0.00019591,2]
[357060296,1743673840913,-324.98,0.00019597,2]
[357060297,1743673840922,-879.34,0.00019597,2]
[357060298,1743673840931,-600.0,0.00019597,2]
[357060299,1743673840943,-150.0,0.00019661,2]
[357060300,1743673840953,-1168.52,0.00019817,2]
[357060301,1743673840962,-1000.0,0.00019925,2]
[357060302,1743673840972,-2202.75114894,0.0002,4]
[357060303,1743673840981,-151.0,0.0002,2]
[357060304,1743673840990,-151.0,0.0002,2]
[357060305,1743673840999,-151.67,0.0002,2]
[357060306,1743673841009,-151.67,0.0002,2]
[357060307,1743673841019,-151.67,0.0002,2]
[357060308,1743673841028,-151.67,0.0002,2]
[357060309,1743673841037,-151.67,0.0002,2]
[357060310,1743673841046,-151.67,0.0002,2]
[357060311,1743673841056,-151.67,0.0002,2]
[357060312,1743673841065,-151.67,0.0002,2]
[357060313,1743673841074,-542.57,0.00020034,2]
[357060314,1743673841083,-542.57,0.0002004,2]
[357060315,1743673841092,-151.0,0.00020042,2]
[357060316,1743673841101,-151.0,0.00020042,2]
[357060317,1743673841110,-542.57,0.00020045,2]
[357060318,1743673841120,-542.57,0.0002005,2]
[357060319,1743673841129,-542.57,0.00020055,2]
[357060320,1743673841138,-542.57,0.00020061,2]
[357060321,1743673841148,-542.57,0.00020066,2]
[357060322,1743673841157,-542.57,0.00020071,2]
[357060323,1743673841166,-542.57,0.00020076,2]
[357060324,1743673841175,-542.57,0.00020082,2]
[357060325,1743673841185,-542.57,0.00020087,2]
[357060326,1743673841195,-328.70224591,0.00020088,2]
[357060327,1743673841204,-542.57,0.00020092,2]
[357060328,1743673841213,-542.57,0.00020097,2]
[357060329,1743673841223,-542.57,0.00020103,2]
[357060330,1743673841232,-542.57,0.00020108,2]
[357060331,1743673841242,-542.57,0.00020113,2]
[357060332,1743673841251,-542.57,0.00020118,2]
[357060333,1743673841260,-542.57,0.00020124,2]
[357060334,1743673841269,-12800.56,0.00020127,2]
[357060335,1743673841278,-542.57,0.00020129,2]
[357060336,1743673841287,-542.57,0.00020134,2]
[357060337,1743673841296,-200.0,0.0002016,2]
[357060338,1743673841305,-310.75,0.00020161,2]
[357060339,1743673841315,-19980.93,0.00020167,2]
[357060340,1743673841325,-151.0,0.00020167,2]
[357060341,1743673841334,-164.864458,0.00020167,2]
[357060342,1743673841344,-500.0,0.00020179,2]
[357060343,1743673841353,-162.57,0.00020185,2]
[357060344,1743673841362,-150.0,0.0002023,7]
[357060345,1743673841372,-174.86,0.00020262,2]
[357060346,1743673841381,-521.95733703,0.00021,2]
[357060347,1743673841391,-2354.81611879,0.00021,2]
[357060348,1743673841401,-152.89,0.00021046,2]
[357060349,1743673841410,-576.192,0.00021597,2]
[357060350,1743673841420,-1429.167,0.00021597,2]
[357060351,1743673841429,-795.0,0.00021597,2]
[357060352,1743673841440,-347.337,0.00021597,2]
[357060353,1743673841449,-1286.221,0.00021597,2]
[357060354,1743673841459,-3307.066,0.00021597,2]
[357060355,1743673841468,-1118.0,0.00021597,2]
[357060356,1743673841479,-700.0,0.00021602,2]
[357060357,1743673841488,-6580.57525899,0.00021989,2]
[357060358,1743673841499,-1168.52,0.00022081,2]
[357060359,1743673841509,-231.3694363,0.0002211,2]
[357060360,1743673841519,-151.0,0.00022415,7]
[357060361,1743673841531,-1000.0,0.00022415,2]
[357060362,1743673841541,-152.89,0.00022416,2]
[357060363,1743673841551,-2579.39,0.00023368,2]
[357060364,1743673841560,-4243.7,0.00023368,2]
[357060365,1743673841569,-1141.12,0.00023368,2]
[357060366,1743673841579,-164.99472926,0.0002365,2]
[357060367,1743673841588,-194.72,0.00023836,2]
[357060368,1743673841597,-4110.23246224,0.00024,2]
[357060369,1743673841608,-1168.52,0.00024345,2]
[357060370,1743673841620,-856.45,0.00024597,2]
[357060371,1743673841629,-151.67,0.0002479,2]
[357060372,1743673841638,-151.0,0.000248,7]
[357060373,1743673841647,-309376.925926,0.000248,2]
[357060374,1743673841658,-163.01185855,0.00024806,4]
[357060375,1743673841667,-297.3959409,0.00024806,2]
[357060376,1743673841677,-313.37650301,0.00024806,2]
[357060377,1743673841689,-191.42634596,0.00024806,2]
[357060378,1743673841700,-27892.83571165,0.00024806,2]
[357060379,1743673841709,-1625.58991064,0.00024806,2]
[357060380,1743673841719,-151.67,0.0002489,2]
[357060381,1743673841728,-151.0,0.000249,7]
[357060382,1743673841738,-317114.765146,0.000249,2]
[357060383,1743673841747,-1000.0,0.00024906,2]
[357060384,1743673841757,-174.86,0.00025327,2]
[357060385,1743673841766,-6580.57525899,0.00025533,2]
[357060386,1743673841776,-1000.0,0.00025658,2]
[357060387,1743673841786,-1168.52,0.00026609,2]
[357060388,1743673841795,-606.0,0.00026849,2]
[357060389,1743673841804,-160.79,0.00026849,2]
[357060390,1743673841814,-250.0,0.00027,2]
[357060391,1743673841823,-1000.0,0.00027396,2]
[357060392,1743673841833,-300.0,0.00027397,30]
[357060393,1743673841842,-310.75,0.00028226,2]
[357060394,1743673841852,-1168.52,0.00028873,2]
[357060395,1743673841861,-300.0,0.00029,2]
[357060396,1743673841870,-6580.57525899,0.00029078,2]
[357060397,1743673841880,-722.5816903,0.00029089,2]
[357060398,1743673841890,-151.0,0.00029256,7]
[357060399,1743673841899,-3417.0,0.000294,5]
[357060400,1743673841908,-361.1171624,0.00029571,2]
[357060401,1743673841918,-1000.0,0.00029887,2]
[357060402,1743673841928,-13544.6791144,0.0003,2]
[357060403,1743673841937,-212.0,0.0003,2]
[357060404,1743673841947,-174.86,0.00030393,2]
[357060405,1743673841959,-300.0,0.00030822,30]
[357060406,1743673841970,-350.0,0.00031,2]
[357060407,1743673841979,-1168.52,0.00031137,2]
[357060408,1743673841989,-164.99472926,0.000324,4]
[357060409,1743673841998,-151.67,0.00032612,2]
[357060410,1743673842007,-6580.57525899,0.00032622,2]
[357060411,1743673842017,-606.0,0.00032646,2]
[357060412,1743673842026,-164.91945,0.0003276,2]
[357060413,1743673842036,-500.0,0.00032876,120]
[357060414,1743673842051,-500.0,0.00032876,120]
[357060415,1743673842061,-59637.68,0.000329,14]
[357060416,1743673842070,-155.83,0.00032932,120]
[357060417,1743673842080,-400.0,0.00033,2]
[357060418,1743673842090,-212.0,0.00033,2]
[357060419,1743673842099,-1168.52,0.00033401,2]
[357060420,1743673842109,-770.338023,0.00033907,6]
[357060421,1743673842119,-3652.56456388,0.00034,3]
[357060422,1743673842128,-2000.0,0.000342,2]
[357060423,1743673842138,-300.0,0.00034247,30]
[357060424,1743673842147,-1010.5521123,0.00034261,5]
[357060425,1743673842157,-21176.0843799,0.00034544,2]
[357060426,1743673842166,-848.29,0.000347,2]
[357060427,1743673842176,-852.88,0.000347,2]
[357060428,1743673842185,-700.71347182,0.00034926,2]
[357060429,1743673842195,-360.83382849,0.00034926,2]
[357060430,1743673842205,-347.02195708,0.00034926,2]
[357060431,1743673842214,-758.84070496,0.00034926,2]
[357060432,1743673842224,-1515.15863451,0.00034926,2]
[357060433,1743673842233,-1025.77741888,0.00034926,2]
[357060434,1743673842242,-5165.15558989,0.00034926,2]
[357060435,1743673842252,-2446.22938068,0.00034926,2]
[357060436,1743673842261,-4031.78708891,0.00034926,2]
[357060437,1743673842272,-79988.72438472,0.00034926,2]
[357060438,1743673842281,-2695.59003542,0.00034926,2]
[357060439,1743673842291,-2114.44719183,0.00034926,2]
[357060440,1743673842300,-624.59378946,0.00035,2]
[357060441,1743673842310,-450.0,0.00035,2]
[357060442,1743673842319,-167.7,0.00035,2]
[357060443,1743673842328,-194.72,0.00035068,2]
[357060444,1743673842337,-150.0,0.00035616,2]
[357060445,1743673842346,-1168.52,0.00035665,2]
[357060446,1743673842356,-1500.0,0.00035677,5]
[357060447,1743673842365,-59637.68,0.000357,14]
[357060448,1743673842374,-852.88,0.000357,2]
[357060449,1743673842384,-1508.89793972,0.0003613,2]
[357060450,1743673842393,-412.9,0.00036144,2]
[357060451,1743673842402,-6580.57525899,0.00036167,2]
[357060452,1743673842411,-7663.13371166,0.00036258,4]
[357060453,1743673842420,-1066.0,0.00036488,5]
[357060454,1743673842429,-150.0,0.00036554,2]
[357060455,1743673842438,-2038.52248337,0.000366,2]
[357060456,1743673842448,-151.67,0.0003689,2]
[357060457,1743673842457,-1300.0,0.000369,13]
[357060458,1743673842467,-87629.23246069,0.00037,2]
[357060459,1743673842476,-2000.0,0.00037,2]
[357060460,1743673842485,-500.0,0.00037,2]
[357060461,1743673842495,-442.03210596,0.00037139,2]
[357060462,1743673842504,-852.88,0.000374,2]
[357060463,1743673842659,-150.0,0.00037491,2]
[357060464,1743673842669,-152.0,0.00037619,3]
[357060465,1743673842679,-300.0,0.00037671,30]
[357060466,1743673842690,-151.69799671,0.00037832,14]
[357060467,1743673842699,-155.83,0.00037858,120]
[357060468,1743673842709,-1018.76831507,0.00037884,2]
[357060469,1743673842719,-4800.35,0.000379,2]
[357060470,1743673842728,-5346.11,0.000379,2]
[357060471,1743673842739,-1168.52,0.00037928,2]
[357060472,1743673842748,-297.3959409,0.00038353,2]
[357060473,1743673842757,-313.37650299,0.00038353,2]
[357060474,1743673842767,-191.42634594,0.00038353,2]
[357060475,1743673842776,-27892.83571163,0.00038353,2]
[357060476,1743673842785,-1625.58991064,0.00038353,2]
[357060477,1743673842795,-52251.37228034,0.00038372,4]
[357060478,1743673842805,-1066.0,0.00038409,5]
[357060479,1743673842814,-150.0,0.00038428,2]
[357060480,1743673842823,-606.0,0.00038443,2]
[357060481,1743673842833,-419.3432105,0.00038518,4]
[357060482,1743673842842,-59637.68,0.000389,14]
[357060483,1743673842851,-538.0,0.00039,7]
[357060484,1743673842860,-193.1048754,0.00039,120]
[357060485,1743673842870,-13000.0,0.00039,7]
[357060486,1743673842879,-627.15282574,0.00039,120]
[357060487,1743673842890,-2544.88,0.00039,7]
[357060488,1743673842900,-550.0,0.00039,2]
[357060489,1743673842909,-150.0,0.00039366,2]
[357060490,1743673842919,-199.82898451,0.00039699,30]
[357060491,1743673842928,-852.88,0.000397,2]
[357060492,1743673842938,-2000.0,0.000397,2]
[357060493,1743673842947,-6580.57525899,0.00039711,2]
[357060494,1743673842957,-151.67,0.00039787,2]
[357060495,1743673842966,-249.39011001,0.0003979,3]
[357060496,1743673842976,-195181.22541424,0.00039797,3]
[357060497,1743673842986,-6411.12302649,0.0003988,2]
[357060498,1743673842996,-3803.9,0.0004,4]
[357060499,1743673843006,-1016.26290833,0.0004,15]
[357060500,1743673843016,-1000.0,0.0004,5]
[357060501,1743673843025,-12000.0,0.0004,3]
[357060502,1743673843034,-333.35116685,0.0004,120]
[357060503,1743673843043,-260.90250285,0.0004,120]
[357060504,1743673843053,-477.12749073,0.0004,30]
[357060505,1743673843063,-384.87215953,0.0004,30]
[357060506,1743673843072,-306.08368436,0.0004,120]
[357060507,1743673843081,-196.97012892,0.0004,30]
[357060508,1743673843091,-768.0570853,0.0004,30]
[357060509,1743673843101,-6095.05527218,0.0004,120]
[357060510,1743673843110,-629.55175796,0.0004,120]
[357060511,1743673843119,-7978.79588942,0.0004,2]
[357060512,1743673843129,-922.61146628,0.0004,14]
[357060513,1743673843138,-199.82898451,0.00040137,30]
[357060514,1743673843147,-1168.52,0.00040192,2]
[357060515,1743673843157,-150.0,0.00040303,2]
[357060516,1743673843166,-1066.0,0.0004043,5]
[357060517,1743673843175,-3213.52769878,0.00040666,2]
[357060518,1743673843184,-4800.35,0.000407,2]
[357060519,1743673843194,-5346.11,0.000407,2]
[357060520,1743673843204,-151.67,0.0004089,2]
[357060521,1743673843213,-59637.68,0.000409,14]
[357060522,1743673843222,-1000.0,0.00041,7]
[357060523,1743673843232,-8206.75657866,0.00041,5]
[357060524,1743673843241,-1000.0,0.00041,120]
[357060525,1743673843250,-224.80325869,0.00041,120]
[357060526,1743673843260,-600.0,0.00041,2]
[357060527,1743673843269,-173.0,0.00041,14]
[357060528,1743673843278,-300.0,0.00041096,30]
[357060529,1743673843288,-1359.58741238,0.00041096,31]
[357060530,1743673843297,-1359.58741238,0.00041096,31]
[357060531,1743673843306,-1359.58741238,0.00041096,31]
[357060532,1743673843316,-1359.58741238,0.00041096,31]
[357060533,1743673843325,-1359.58741238,0.00041096,31]
[357060534,1743673843334,-1359.58741238,0.00041096,31]
[357060535,1743673843344,-1359.58741238,0.00041096,31]
[357060536,1743673843353,-1359.58741238,0.00041096,31]
[357060537,1743673843363,-1359.58741238,0.00041096,31]
[357060538,1743673843372,-1359.58741238,0.00041096,31]
[357060539,1743673843382,-1359.58741238,0.00041096,31]
[357060540,1743673843391,-1359.58741238,0.00041096,31]
[357060541,1743673843401,-1359.58741238,0.00041096,31]
[357060542,1743673843411,-1359.58741238,0.00041096,31]
[357060543,1743673843420,-1359.58741238,0.00041096,31]
[357060544,1743673843430,-1359.58741238,0.00041096,31]
[357060545,1743673843440,-1359.58741238,0.00041096,31]
[357060546,1743673843450,-1359.58741238,0.00041096,31]
[357060547,1743673843460,-1359.58741238,0.00041096,31]
[357060548,1743673843470,-1359.58741238,0.00041096,31]
[357060549,1743673843479,-1359.58741238,0.00041096,31]
[357060550,1743673843488,-1359.58741238,0.00041096,31]
[357060551,1743673843498,-1468.35440537,0.00041096,31]
[357060552,1743673843507,-1468.35440537,0.00041096,31]
[357060553,1743673843517,-1468.35440537,0.00041096,31]
[357060554,1743673843527,-1468.35440537,0.00041096,31]
[357060555,1743673843536,-1468.35440537,0.00041096,31]
[357060556,1743673843545,-164.99472926,0.0004115,15]
[357060557,1743673843555,-209.0,0.0004122,2]
[357060558,1743673843564,-152.84239687,0.0004122,2]
[357060559,1743673843574,-150.0,0.0004122,2]
[357060560,1743673843583,-500.0,0.0004122,2]
[357060561,1743673843592,-500.0,0.0004122,2]
[357060562,1743673843601,-500.0,0.0004122,2]
[357060563,1743673843613,-2695.0,0.0004122,2]
[357060564,1743673843623,-500.0,0.0004122,2]
[357060565,1743673843632,-500.0,0.0004122,2]
[357060566,1743673843642,-500.0,0.0004122,2]
[357060567,1743673843651,-150.0,0.0004124,2]
[357060568,1743673843662,-150.0,0.00041247,2]
[357060569,1743673843671,-500.0,0.00041247,2]
[357060570,1743673843681,-500.0,0.00041247,2]
[357060571,1743673843693,-500.0,0.00041247,2]
[357060572,1743673843703,-2695.0,0.00041247,2]
[357060573,1743673843713,-500.0,0.00041247,2]
[357060574,1743673843723,-500.0,0.00041247,2]
[357060575,1743673843732,-500.0,0.00041247,2]
[357060576,1743673843742,-211.55,0.00041275,2]
[357060577,1743673843751,-500.0,0.00041275,2]
[357060578,1743673843761,-500.0,0.00041275,2]
[357060579,1743673843771,-500.0,0.00041275,2]
[357060580,1743673843781,-2695.0,0.00041275,2]
[357060581,1743673843791,-500.0,0.00041275,2]
[357060582,1743673843801,-500.0,0.00041275,2]
[357060583,1743673843810,-500.0,0.00041275,2]
[357060584,1743673843819,-150.0,0.00041276,3]